Cogmind - Beta 15 @@@ ROGUE MODE // 2025.06.28 @ 02:34:27 Player: Skysub Result: Defending 0bPrime! Performance ------------- Evolutions (8) 4000 Regions Visited (22) 4400 Robots Destroyed (75) 375 Value Destroyed (2111) 2111 Prototype IDs (74) 1480 Alien Tech Used (2) 400 Bonus (21630) 21630 TOTAL SCORE: 34396 Bonus ------- High Alert Combat Kills 44 Follower Combat Kills 1786 Network Hubs Disabled 400 Registered with UFD 300 Met Optimus in HQ 500 Met Imprinter 300 Built Enhanced Grunts 300 Met R17 at Cetus 500 Hacked Protovariant 500 Met Optimus at Protoforge 1000 Completed Drillbomb Mission10000 Optimus Survived to 0b1 3000 Win 3000 Cogmind --------- Core Integrity 807/1450 Matter 270/300 Energy 220/220 System Corruption 4% Temperature Cool (0) Movement Flying (57) Location 0bPrime Parts ------- > --- POWER (3) -------- Light Antimatter Reactor Micro Antimatter Reactor > --- PROPULSION (7) --- Enhanced Biometal Leg Enhanced Biometal Leg Impulse Thruster Array Impulse Thruster Array Improved Q-thruster > --- UTILITY (11) ----- 0bPrime Scrap Suit Experimental Heat Sink Experimental Optical Array Experimental Core Analyzer Experimental Core Analyzer Experimental Core Analyzer Experimental Core Analyzer Experimental Core Analyzer Improved Armor Integrity Analyzer Experimental Hacking Suite > --- WEAPON (2) ------- Helical Railgun Helical Railgun > --- INVENTORY (5) ---- Reinforced Antimatter Reactor Improved Quantum Reactor Advanced Heat Sink Improved Target Analyzer Graphene Brace Peak State ------------ > --- POWER ------------ Light Antimatter Reactor Micro Antimatter Reactor Improved Quantum Reactor > --- PROPULSION ------- Enhanced Biometal Leg Enhanced Biometal Leg Impulse Thruster Array Impulse Thruster Array Improved Q-thruster > --- UTILITY ---------- 0bPrime Scrap Suit Experimental Heat Sink Experimental Optical Array Experimental Core Analyzer Experimental Core Analyzer Experimental Core Analyzer Experimental Core Analyzer Experimental Core Analyzer Improved Armor Integrity Analyzer Experimental Hacking Suite > --- WEAPON ----------- Helical Railgun Helical Railgun > --- INVENTORY -------- Reinforced Antimatter Reactor Advanced Heat Sink Improved Target Analyzer Graphene Brace [Rating: 201] Favorites ----------- Power Meta Core Engine Ion Engine Power Core Meta Core Reactor Micro Antimatter Reactor Propulsion Cooled Cesium-ion Thruster Treads Light Treads Leg Enhanced Biometal Leg Wheel Compact Wheel Flight Unit Cooled Cesium-ion Thruster Utility Advanced Signal Interpreter Device Deep Structural Scanner Storage Small Storage Unit Processor Advanced Signal Interpreter Hackware Improved Hacking Suite Protection Centrium Medium Armor Plating Artifact Phase Armor Weapon Ripper Energy Gun Medium Laser Energy Cannon Disintegrator Ballistic Gun Assault Rifle Ballistic Cannon Light Cannon Launcher Mini Grenade Launcher Special Weapon Improved Remote Datajack Impact Weapon Hammer Slashing Weapon Ripper Piercing Weapon Plasma Lance Special Melee Weapon Improved Datajack Build | -11 -10 -10 -9 -6 -6 -6 -6 -5 -5 -5 -5 -5 -5 -4 -4 -4 -4 -3 -3 -2 -2 -2 ------- Run | Yrd Mat Sub Scr Fac Low Low Zio Pro Fac Ext Cet Arc Hub Fac Was Fac Arm Res Qua Res Tes Frg Slots Evolved 16 | . . . . 8 . . . . 2 . . . . 2 . . . 2 . 2 . . Power 2 | . . . . 1 . . . . . . . . . . . . . 1 . . . . Propulsion 5 | . . . . 3 . . . . 1 . . . . . . . . . . 1 . . Utility 9 | . . . . 4 . . . . 1 . . . . 2 . . . 1 . 1 . . Weapon . | . . . . . . . . . . . . . . . . . . . . . . . Parts Attached 192 | 7 4 9 8 21 1 2 1 2 11 4 8 . 1 4 1 6 6 21 3 7 10 55 Power 22 | 1 . 1 2 3 . 1 . . 1 . 1 . . . . 1 . 2 . 1 . 8 Engine 10 | 1 . 1 2 1 . 1 . . 1 . 1 . . . . . . . . . . 2 Core 2 | . . . . 2 . . . . . . . . . . . . . . . . . . Reactor 10 | . . . . . . . . . . . . . . . . 1 . 2 . 1 . 6 Propulsion 56 | 2 . 2 4 9 1 . . . 4 1 1 . . . . 2 4 5 2 1 2 16 Treads 4 | 2 . 1 1 . . . . . . . . . . . . . . . . . . . Leg 2 | . . . . . . . . . . . . . . . . . . . . . . 2 Wheel 3 | . . 1 2 . . . . . . . . . . . . . . . . . . . Hover . | . . . . . . . . . . . . . . . . . . . . . . . Flight 47 | . . . 1 9 1 . . . 4 1 1 . . . . 2 4 5 2 1 2 14 Utility 87 | 2 2 1 1 9 . 1 . . 4 3 4 . 1 4 1 3 . 14 1 4 6 26 Device 44 | 1 1 . . 5 . 1 . . 2 . 2 . . 3 1 2 . 8 . 3 2 13 Storage 4 | 1 1 . 1 . . . . . . . . . . . . . . . . 1 . . Processor 16 | . . . . 1 . . . . . . . . . 1 . . . 3 . . . 11 Hackware 7 | . . . . 1 . . . . 2 . . . 1 . . . . 2 . . 1 . Protection 15 | . . 1 . 2 . . . . . 3 2 . . . . 1 . 1 . . 3 2 Artifact 1 | . . . . . . . . . . . . . . . . . . . 1 . . . Weapon 27 | 2 2 5 1 . . . 1 2 2 . 2 . . . . . 2 . . 1 2 5 Energy Gun 2 | 1 . 1 . . . . . . . . . . . . . . . . . . . . Energy Cannon 1 | . . . . . . . . . . . . . . . . . . . . . 1 . Ballistic Gun 9 | 1 1 2 . . . . . . . . 2 . . . . . . . . . 1 2 Ballistic Cannon 1 | . 1 . . . . . . . . . . . . . . . . . . . . . Launcher 1 | . . . 1 . . . . . . . . . . . . . . . . . . . Special Weapon 3 | . . . . . . . . . 2 . . . . . . . . . . . . 1 Impact Weapon 1 | . . 1 . . . . . . . . . . . . . . . . . . . . Slashing Weapon 6 | . . 1 . . . . 1 . . . . . . . . . 2 . . 1 . 1 Piercing Weapon 1 | . . . . . . . . . . . . . . . . . . . . . . 1 Special Melee Weapon 2 | . . . . . . . . 2 . . . . . . . . . . . . . . Unidentified Prototypes 32 | . . . . 1 . . . . . 1 2 . . . . . 1 8 2 1 4 12 Parts Lost 55 | . 1 6 . 1 . . . . 3 2 2 1 4 1 . . 3 1 . 13 1 16 Power 6 | . . 2 . . . . . . . . . . . . . . . . . 2 . 2 Propulsion 21 | . . 2 . . . . . . 1 1 1 . 2 1 . . 2 . . 4 . 7 Utility 21 | . . . . 1 . . . . 2 1 1 1 1 . . . . 1 . 6 1 6 Weapon 7 | . 1 2 . . . . . . . . . . 1 . . . 1 . . 1 . 1 Highest Loss Streak 10 | . 1 3 . 1 . . . . 1 2 2 1 4 1 . . 1 1 . 10 1 7 To Critical Strikes 1 | . . . . . . . . . . . 1 . . . . . . . . . . . Average Backups 7 | 1 5 12 7 7 6 6 6 6 5 6 6 7 6 6 7 6 5 6 7 7 6 2 Power . | . 1 . . . . . . . . . . 1 1 1 1 . . . . . . . Propulsion 1 | . 1 4 1 1 1 . . . . . . . . . . . . 1 1 . . . Utility 3 | . 1 4 3 2 2 3 4 4 2 2 3 4 4 3 4 3 3 3 4 4 3 1 Weapon 1 | . 1 3 1 1 1 1 1 1 1 1 1 1 1 2 2 2 1 1 1 1 1 . Tool/Special . | . . . . . . . . . . . . . . . . . . . . . . . Unused Backups 64 | . . 4 38 3 . 3 . . 1 1 . . . . . . 1 . . 1 . 12 Power 6 | . . . 5 . . . . . . . . . . . . . . . . . . 1 Propulsion 13 | . . . 9 . . . . . . . . . . . . . . . . 1 . 3 Utility 25 | . . 2 13 3 . 1 . . . 1 . . . . . . . . . . . 5 Weapon 17 | . . 2 9 . . 1 . . 1 . . . . . . . 1 . . . . 3 Tool/Special 3 | . . . 2 . . 1 . . . . . . . . . . . . . . . . Average Slot Usage (%) 83 | . 94 96 64 85 88 88 87 88 87 90 90 88 93 72 80 82 87 87 95 89 83 75 Engine 6 | . 14 12 7 5 . 2 5 5 5 5 5 5 5 4 5 . . . . . . 1 Core 2 | . . . . 3 10 8 5 5 5 5 5 5 5 4 5 5 5 4 4 4 4 2 Reactor 1 | . . . . . . . . . . . . . . . . 4 5 7 9 6 4 4 Treads 9 | . 28 22 14 . . . . . . . . . . . . . . . . . . . Wheel 1 | . . 4 5 . . . . . . . . . . . . . . . . . . . Flight 13 | . . . 1 26 27 27 27 27 28 32 29 30 29 18 15 18 23 19 25 24 22 21 Device 14 | . 14 13 8 13 16 16 16 16 15 13 15 10 10 14 20 19 20 20 21 20 16 12 Storage 8 | . 14 14 13 5 5 5 5 5 5 5 5 5 5 4 5 5 5 4 4 4 4 3 Processor 3 | . . . . 5 5 5 5 5 5 5 5 5 5 6 10 10 10 9 9 8 8 11 Hackware 4 | . . . . 2 5 5 5 5 9 10 10 10 14 9 10 10 10 11 13 12 13 7 Protection 2 | . . . . 7 5 5 5 5 4 4 5 5 5 4 5 5 5 3 . . 4 3 Ballistic Gun 5 | . 15 17 1 . . . . . . . 5 7 9 . . . . . . . . . Slashing Weapon 6 | . . 8 9 5 5 5 4 5 5 5 5 5 5 4 5 5 4 5 5 6 3 3 Peak Build Rating 201 | 9 9 16 23 70 75 75 72 73 95 103 119 113 118 100 99 123 132 157 176 168 170 201 Average Rating 64 | 6 8 12 10 58 74 73 71 72 82 98 111 110 116 93 98 113 121 148 151 150 152 155 On Entrance 84 | . 9 7 13 23 69 75 72 72 73 95 103 112 113 90 94 99 123 132 148 157 115 160 Naked Turns 156 | . . . 156 . . . . . . . . . . . . . . . . . . . Heaviest Build 200 | 15 31 35 200 31 26 26 24 23 29 39 42 43 43 32 32 34 40 46 41 50 51 68 Greatest Support 70 | 40 40 40 43 30 29 29 29 29 50 47 43 43 43 41 38 50 47 47 47 56 70 70 Greatest Overweight (x) 16 | . . 2 16 2 . . . . . . . . . . . . . 1 1 1 . 13 Average Overweight (x) . | . . . 1 . . . . . . . . . . . . . . . . . . . Largest Inventory Capacity 35 | 8 15 15 35 15 8 8 8 8 8 8 8 8 8 8 8 8 8 8 8 10 10 10 Average Capacity 11 | 7 10 15 16 8 8 8 8 8 8 8 8 8 8 8 8 8 8 8 8 9 10 9 Most Carried 28 | 3 7 15 28 14 8 8 8 8 8 8 8 8 8 8 8 8 8 8 8 8 10 10 Average Carried 8 | 1 5 13 8 8 7 7 8 8 7 7 7 7 7 7 8 7 7 7 7 7 7 5 Final Capacity 15 | 8 15 15 15 8 8 8 8 8 8 8 8 8 8 8 8 8 8 8 8 10 10 5 Final Carried 14 | 3 7 14 14 8 8 8 8 8 8 8 8 8 8 8 8 8 7 8 8 6 10 5 Class Distribution -------------------- 44% | Mutant 12% | Hacker-Ninja 7% | Hacker-Sprinter 6% | Ninja 6% | Hacker-Scout 4% | Scavenger-Sprinter 3% | Infiltrator-Ninja 3% | Hacker-Mutant Dominant Class ---------------- Mutant | -10/Materials Mutant | -10/Subcaves Mutant | -9/Scraptown Infiltrator-Ninja | -6/Factory Infiltrator-Ninja | -6/Lower Caves Ninja | -6/Lower Caves Ninja | -6/Zion Ninja | -5/Proximity Caves Hacker-Ninja | -5/Factory Hacker-Scout | -5/Extension Hacker-Sprinter | -5/Cetus Commander-Sprinter | -5/Archives Hacker-Sprinter | -5/Hub_04(d) Hacker-Sprinter | -4/Factory Hacker-Sprinter | -4/Waste Hacker-Sprinter | -4/Factory Hacker-Sprinter | -4/Armory Hacker-Ninja | -3/Research Hacker-Ninja | -3/Quarantine Hacker-Ninja | -2/Research Hacker-Scout | -2/Testing Scavenger-Sprinter | -2/Protoforge Resources | -11 -10 -10 -9 -6 -6 -6 -6 -5 -5 -5 -5 -5 -5 -4 -4 -4 -4 -3 -3 -2 -2 -2 ----------- Run | Yrd Mat Sub Scr Fac Low Low Zio Pro Fac Ext Cet Arc Hub Fac Was Fac Arm Res Qua Res Tes Frg Matter Collected 3839 | 247 298 196 50 188 69 118 10 10 127 282 180 34 37 . . 137 . 591 53 139 111 962 Remotely . | . . . . . . . . . . . . . . . . . . . . . . . Salvage Created 2691 | 55 516 395 . 90 . . . 32 27 225 36 115 497 . . . . 337 53 139 111 63 Parts 168 | 9 39 21 . 7 . . . 2 1 14 1 8 30 . . . . 13 2 10 4 7 Haulers Intercepted 4 | . 1 . . . . . . . . . . . 1 . . . . 2 . . . . Recyclers Shooed 5 | . 2 . . . . . . . . 1 . . . . . . . . . . 2 . Parts Field Recycled . | . . . . . . . . . . . . . . . . . . . . . . . Retrieved Matter . | . . . . . . . . . . . . . . . . . . . . . . . Parts Self-Destructed 16 | . . 15 . . . . . 1 . . . . . . . . . . . . . . Prevented . | . . . . . . . . . . . . . . . . . . . . . . . Kills | -11 -10 -10 -9 -6 -6 -6 -6 -5 -5 -5 -5 -5 -5 -4 -4 -4 -4 -3 -3 -2 -2 -2 ------- Run | Yrd Mat Sub Scr Fac Low Low Zio Pro Fac Ext Cet Arc Hub Fac Was Fac Arm Res Qua Res Tes Frg Combat Hostiles Destroyed 31 | . 10 8 . 2 . . . . . 6 . . 2 . . . . . . 2 . 1 Melee 7 | . . 1 . 1 . . . . . 2 . . . . . . . . . 2 . 1 Guns 16 | . 10 6 . . . . . . . . . . . . . . . . . . . . AOE 6 | . . . . 1 . . . . . 4 . . 1 . . . . . . . . . Classes Destroyed 16 | 1 6 1 . 1 . . . 1 . 1 . 1 1 . . . . . 1 1 . 1 Worker 5 | . . . . . . . . . . . . . 4 . . . . . . . 1 . Builder 12 | . 3 . . 1 . . . . . . . . 4 . . . . . . 2 1 1 Tunneler 5 | 3 . . . . . . . . . . . . 1 . . . . 1 . . . . Hauler 4 | . 1 . . . . . . . . . . . 1 . . . . 2 . . . . Recycler 3 | . 2 . . . . . . . . . . . . . . . . 1 . . . . Minesweeper 1 | . . . . . . . . 1 . . . . . . . . . . . . . . Operator 4 | . . . . . . . . . . . . 3 1 . . . . . . . . . Drone 1 | . . . . . . . . . . . . . . . . . . . . . . 1 Watcher 8 | . 1 . . 1 . . . . 1 1 1 . 2 . . . . . . . . 1 Swarmer 9 | . 5 . . . . . . . . 4 . . . . . . . . . . . . Cutter 1 | . . . . . . . . . . . . . . . . . . . . 1 . . Grunt 7 | . 5 . . 1 . . . . . . . . 1 . . . . . . . . . Researcher 2 | . . . . . . . . . . . . . . . . . . . 1 . 1 . Sentry 3 | . . . . . . . . . . 2 . . 1 . . . . . . . . . Programmer 2 | . . . . 1 . . . . . . . . . . . . . . . 1 . . Subdweller 8 | . . 8 . . . . . . . . . . . . . . . . . . . . Best Kill Streak 14 | 3 6 1 . 2 . . . 1 1 5 1 2 14 . . . . 2 1 1 2 1 Combat Bots Only 6 | . 6 1 . 1 . . . . . 5 . . 2 . . . . . . 1 . 1 Max Kills in Single Turn 13 | 1 1 1 . 2 . . . 1 1 2 1 1 13 . . . . 1 1 1 1 1 Gunslinging . | . . . . . . . . . . . . . . . . . . . . . . . Exploded 2 | . . . . 1 . . . . . 2 . . 1 . . . . . . . . . Melee 1 | . . 1 . 1 . . . . . 1 . . . . . . . . . 1 . 1 Uniques/NPCs Destroyed . | . . . . . . . . . . . . . . . . . . . . . . . Combat | -11 -10 -10 -9 -6 -6 -6 -6 -5 -5 -5 -5 -5 -5 -4 -4 -4 -4 -3 -3 -2 -2 -2 -------- Run | Yrd Mat Sub Scr Fac Low Low Zio Pro Fac Ext Cet Arc Hub Fac Was Fac Arm Res Qua Res Tes Frg Hostile Shots Fired 931 | . 64 37 . 46 4 . . . 5 39 38 1 18 8 . 24 74 12 . 93 25 443 Missed 551 | . 21 7 . 26 2 . . . . 24 21 . 2 2 . 16 41 10 . 51 18 310 Hits 380 | . 43 30 . 20 2 . . . 5 15 17 1 16 6 . 8 33 2 . 42 7 133 Melee 24 | . . . . . . . . . . . . . . . . . . . . 9 . 15 Projectile 356 | . 43 30 . 20 2 . . . 5 15 17 1 16 6 . 8 33 2 . 33 7 118 AOE 3 | . . . . . . . . . . . . . . . . . . . . . . 3 Critical Strikes 34 | . . . . . . . . . 1 1 2 . 1 . . 1 2 1 . 9 2 14 Actively Blocked 1 | . . . . . . . . . 1 . . . . . . . . . . . . . Damage Taken 8331 | . 437 790 . 282 31 . . . 195 358 467 50 433 87 . 181 550 42 . 1223 189 3016 Core 1123 | . 72 115 . 44 16 . . . 65 21 67 . . 32 . 21 27 . . 261 . 382 Absorbed by Shields 196 | . . . . 20 . . . . . . 117 . . 19 . . . . . . . 40 Redirected to Shielding 50 | . . . . 21 . . . . 29 . . . . . . . . . . . . . Regen/Repaired (Parts) 343 | . . . . 28 . . . . . . . . . . . 125 . . 19 . 36 135 Core Remaining (%) 78 | 100 . . 25 . . . . 92 . . . . 84 . . . 93 . 100 . . 55 Volleys Fired 157 | 5 63 23 . 2 . . . . 2 21 23 7 6 . . . . . . . . 5 Largest 2 | 2 2 2 . 1 . . . . 1 1 1 1 2 . . . . . . . . 1 Hottest 90 | 70 70 90 . 30 . . . . 30 30 35 35 70 . . . . . . . . 40 Shots Fired 221 | 10 106 37 . 2 . . . . 2 21 23 7 8 . . . . . . . . 5 Gun 194 | 10 104 37 . . . . . . . . 23 7 8 . . . . . . . . 5 Cannon 2 | . 2 . . . . . . . . . . . . . . . . . . . . . Launcher 12 | . . . . 2 . . . . 1 9 . . . . . . . . . . . . Special 13 | . . . . . . . . . 1 12 . . . . . . . . . . . . Kinetic 146 | 5 72 26 . . . . . . . . 23 7 8 . . . . . . . . 5 Thermal 50 | 5 34 11 . . . . . . . . . . . . . . . . . . . . Explosive 12 | . . . . 2 . . . . 1 9 . . . . . . . . . . . . Electromagnetic . | . . . . . . . . . . . . . . . . . . . . . . . Robot Hit Streak 14 | 4 9 9 . 6 . . . . . 12 14 4 5 . . . . . . . . 4 Robot Miss Streak 6 | 1 6 2 . . . . . . 1 2 1 2 . . . . . . . . . 1 Penetration Max 1 | . . . . . . . . . . . 1 . 1 . . . . . . . . . Secondary Targets 4 | . 4 . . . . . . . . . . . . . . . . . . . . . Max Gunslinging Chain 1 | . 1 . . . . . . . . . . . . . . . . . . . . . Shots Hit Robots 204 | 6 56 31 . 6 . . . 4 4 22 22 10 7 . . 1 . 5 3 12 6 9 Core Hits 124 | 3 26 10 . 4 . . . 1 3 17 8 4 35 . . . . 3 . 3 3 4 Critical Kills . | . . . . . . . . . . . . . . . . . . . . . . . Critical Parts Destroyed 14 | . 1 2 . . . . . . . . 5 2 2 . . . . . . . . 2 Critical Strikes 22 | 1 2 3 . . . . . . 1 . 8 2 2 . . . . . . 1 . 2 Burn 2 | 1 1 . . . . . . . . . . . . . . . . . . . . . Destroy 16 | . 1 1 . . . . . . . . 8 2 2 . . . . . . . . 2 Smash 2 | . . 2 . . . . . . . . . . . . . . . . . . . . Sever 2 | . . . . . . . . . 1 . . . . . . . . . . 1 . . Melee Attacks 236 | . . 28 . 18 3 2 . 8 27 15 2 9 9 1 . 17 5 16 9 40 8 19 Impact 10 | . . 10 . . . . . . . . . . . . . . . . . . . . Slashing 225 | . . 18 . 18 3 2 . 7 27 15 2 9 9 1 . 17 5 16 9 40 8 19 Piercing . | . . . . . . . . . . . . . . . . . . . . . . . Sneak Attacks 24 | . . . . 1 . . . 2 . 3 . 4 1 . . . . 4 2 2 3 2 Combat Hostiles 4 | . . . . . . . . 1 . 3 . . . . . . . . . . . . Follow-up Attacks 1 | . . . . . . . . . . . . . . . . . . . 1 . . . Damage Inflicted 9288 | 72 795 640 . 335 . . . 154 288 1076 635 600 2122 . . 42 . 512 290 708 585 434 Guns 2101 | 72 771 398 . . . . . . . . 553 127 145 . . . . . . . . 35 Cannons 15 | . 15 . . . . . . . . . . . . . . . . . . . . . Explosions 2652 | . . . . 137 . . . . 108 589 . . 1818 . . . . . . . . . Melee 4510 | . . 242 . 198 . . . 154 180 487 82 473 158 . . 42 . 512 290 708 585 399 Ramming 10 | . 9 . . . . . . . . . . . 1 . . . . . . . . . Kinetic 1663 | 34 513 256 . . . . . . . . 553 127 145 . . . . . . . . 35 Thermal 453 | 38 273 142 . . . . . . . . . . . . . . . . . . . . Explosive 834 | . . . . 137 . . . . 108 589 . . . . . . . . . . . . Electromagnetic 1818 | . . . . . . . . . . . . . 1818 . . . . . . . . . Impact 127 | . . 127 . . . . . . . . . . . . . . . . . . . . Slashing 4383 | . . 115 . 198 . . . 154 180 487 82 473 158 . . 42 . 512 290 708 585 399 Piercing . | . . . . . . . . . . . . . . . . . . . . . . . Highest Corruption 10 | . . . . . . . . . . . . . 5 . 9 9 10 . . 3 3 4 Average Corruption 5 | . . . . . . . . . . . . . 5 . 9 9 9 . . 1 3 3 Corruption Purged . | . . . . . . . . . . . . . . . . . . . . . . . Corruption Blocked . | . . . . . . . . . . . . . . . . . . . . . . . Effects 55 | . . . . . . . . . . . . . . . . 24 6 . . 2 3 20 Message Errors 18 | . . . . . . . . . . . . . . . . 7 2 . . . 1 8 Matter Fused 7 | . . . . . . . . . . . . . . . . 4 1 . . . . 2 Heat Flow Errors 5 | . . . . . . . . . . . . . . . . 3 . . . . 1 1 Energy Discharges 9 | . . . . . . . . . . . . . . . . 3 2 . . 1 . 3 Parts Rejected 2 | . . . . . . . . . . . . . . . . 1 . . . . . 1 Parts Fused 1 | . . . . . . . . . . . . . . . . 1 . . . . . . Data Loss (minor) 10 | . . . . . . . . . . . . . . . . 3 1 . . 1 1 4 Data Loss (major) 2 | . . . . . . . . . . . . . . . . 1 . . . . . 1 Alerts 1 | . . . . . . . . . . . . . . . . 1 . . . . . . Overload Shots . | . . . . . . . . . . . . . . . . . . . . . . . Overflow Damage 1021 | . . 51 . 54 . . . 36 25 . 5 172 109 . . . . 86 48 208 167 60 Projectiles . | . . . . . . . . . . . . . . . . . . . . . . . Explosions 74 | . . . . . . . . . . . . . 74 . . . . . . . . . Melee 947 | . . 51 . 54 . . . 36 25 . 5 172 35 . . . . 86 48 208 167 60 Knockbacks 1 | . 1 . . . . . . . . . . . . . . . . . . . . . Impact . | . . . . . . . . . . . . . . . . . . . . . . . Kinetic 1 | . 1 . . . . . . . . . . . . . . . . . . . . . Secondary . | . . . . . . . . . . . . . . . . . . . . . . . Self-Inflicted Damage 97 | . . . . . . . . . . . . . 97 . . . . . . . . . Shots 1 | . . . . . . . . . . . . . 1 . . . . . . . . . Rammed 6 | . 5 . . . . . . . . . . . 1 . . . . . . . . . Targets Rammed 8 | . 7 . . . . . . . . . . . 1 . . . . . . . . . Kicked . | . . . . . . . . . . . . . . . . . . . . . . . Crushed 2 | . 2 . . . . . . . . . . . . . . . . . . . . . Highest Temperature 364 | 18 102 20 . 117 53 39 4 4 122 239 . 1 1 . . 276 78 364 . 112 269 222 Average Temperature 49 | 9 31 8 . 25 22 16 4 4 34 42 . 1 1 . . 82 25 112 . 34 100 75 Received Heat Transfer 925 | . 78 66 . 78 . . . . 27 36 27 . 54 9 . 18 81 49 . 18 9 375 Effects 4 | . . . . . . . . . . . . . . . . 2 . 1 . . . 1 Energy Bleed 2 | . . . . . . . . . . . . . . . . . . 1 . . . 1 Interference 2 | . . . . . . . . . . . . . . . . 2 . . . . . . Siege Activations . | . . . . . . . . . . . . . . . . . . . . . . . Martial Activations . | . . . . . . . . . . . . . . . . . . . . . . . Shielding Activations . | . . . . . . . . . . . . . . . . . . . . . . . Robots Disrupted . | . . . . . . . . . . . . . . . . . . . . . . . Combat Hostiles . | . . . . . . . . . . . . . . . . . . . . . . . Robots Corrupted 2 | . . 1 . . . . . . . . . . 1 . . . . . . . . . Combat Hostiles 2 | . . 1 . . . . . . . . . . 1 . . . . . . . . . Parts Fried 9 | . . . . . . . . . . . . . 9 . . . . . . . . . Impact Corruptions 2 | . . 2 . . . . . . . . . . . . . . . . . . . . Robots Melted . | . . . . . . . . . . . . . . . . . . . . . . . Combat Hostiles . | . . . . . . . . . . . . . . . . . . . . . . . Parts Melted 1 | . . . . . . . . . . 1 . . . . . . . . . . . . Heat Transferred 1248 | 185 888 175 . . . . . . . . . . . . . . . . . . . . Parts Sabotaged . | . . . . . . . . . . . . . . . . . . . . . . . Parts Stolen . | . . . . . . . . . . . . . . . . . . . . . . . Parts Stripped . | . . . . . . . . . . . . . . . . . . . . . . . Power Chain Reactions . | . . . . . . . . . . . . . . . . . . . . . . . Alert | -11 -10 -10 -9 -6 -6 -6 -6 -5 -5 -5 -5 -5 -5 -4 -4 -4 -4 -3 -3 -2 -2 -2 ------- Run | Yrd Mat Sub Scr Fac Low Low Zio Pro Fac Ext Cet Arc Hub Fac Was Fac Arm Res Qua Res Tes Frg Maximum Alert Level 3 | . . . . . . . . . . 2 1 1 3 2 . . . . . . . 2 Low Security (%) 79 | 100 100 . . 100 . . . . 100 15 . 20 34 . 100 100 100 100 100 100 100 51 Level 1 11 | . . . . . . . . . . 27 100 79 56 48 . . . . . . . 21 Level 2 8 | . . . . . . . . . . 57 . . . 51 . . . . . . . 27 Level 3 . | . . . . . . . . . . . . . 9 . . . . . . . . . Level 4 . | . . . . . . . . . . . . . . . . . . . . . . . Level 5 . | . . . . . . . . . . . . . . . . . . . . . . . High Security . | . . . . . . . . . . . . . . . . . . . . . . . Max Security . | . . . . . . . . . . . . . . . . . . . . . . . Peak Influence 890 | 10 167 . . 117 . . . . 171 587 372 301 890 448 99 114 86 76 76 108 129 679 Initial 438 | . . . . . . . . . . 79 213 123 98 438 99 62 6 40 4 . 60 58 Average 118 | 1 51 . . 38 . . . . 26 375 315 256 308 358 95 24 51 15 26 11 87 302 Influence Increases 6661 | 15 369 . . 301 . . . 90 388 945 375 228 1277 65 . 206 218 190 196 431 184 1183 Destroy 0b10 Robot/C 1400 | . 200 . . 100 . . . 60 60 400 160 80 240 . . . . . 20 60 20 . Destroy 0b10 Robot/NC 230 | 15 35 . . 10 . . . 5 5 5 10 15 75 . . . . 20 . 10 10 15 Destroy Leader 164 | . 44 . . 22 . . . . 12 32 . . 38 . . . . 4 . 10 . 2 Allied During Kill 761 | . . . . 12 . . . 25 24 277 165 95 151 . . . . . . 12 . . Successful Hack 834 | . 14 . . 62 . . . . 30 21 . . 62 18 . 114 79 99 97 96 64 78 Select Force Hacks 190 | . 60 . . . . . . . . . . . 50 . . . . . 30 . . 50 Disable Machine 330 | . . . . 15 . . . . 15 15 . 30 150 . . . 30 . 30 15 30 . Destroy Structure 712 | . 1 . . 20 . . . . 62 120 40 8 316 2 . 32 4 22 4 48 . 33 Partial Spotted 570 | . . . . 15 . . . . 90 60 . . 75 15 . 45 15 30 . 30 . 195 Lose Combat Pursuer 1470 | . 15 . . 45 . . . . 90 15 . . 120 30 . 15 90 15 15 150 60 810 Influence Decreases 6054 | 15 369 . . 234 67 . . 90 225 726 449 255 663 677 194 282 153 260 204 323 188 680 Entered New Map 1458 | . . . . . 26 . . . . 84 169 185 183 457 184 27 7 38 4 . 48 46 Time Decay 2931 | 15 359 . . 193 41 . . 70 195 262 160 40 60 60 10 255 70 204 122 221 130 464 Lost Part 423 | . 10 . . . . . . . 30 20 20 10 40 10 . . 30 10 . 73 10 160 Lost Ally 688 | . . . . 41 . . . 20 . 360 100 20 80 . . . 10 8 10 29 . 10 Purge Threat 554 | . . . . . . . . . . . . . 300 150 . . 36 . 68 . . . Squads Dispatched 74 | . 5 . . 8 . . . . 10 2 . . 8 . . 5 6 8 2 6 5 9 Investigation 39 | . 3 . . 5 . . . . 7 1 . . 4 . . 2 3 5 1 1 1 6 Extermination 12 | . . . . 2 . . . . 2 . . . . . . 2 1 . 1 3 1 . Reinforcement 22 | . 2 . . 1 . . . . 1 1 . . 4 . . 1 2 3 . 2 2 3 Assault 1 | . . . . . . . . . . . . . . . . . . . . . 1 . Garrison . | . . . . . . . . . . . . . . . . . . . . . . . Intercept . | . . . . . . . . . . . . . . . . . . . . . . . Searches Triggered . | . . . . . . . . . . . . . . . . . . . . . . . Construction Impeded 3 | . . . . 1 . . . . . 1 . . 1 . . . . . . . . . Haulers Reinforced 1 | . . . . . . . . . . . . . . . . . . 1 . . . . Active Scanning Responses . | . . . . . . . . . . . . . . . . . . . . . . . Cargo Convoy Interrupts 1 | . . . . . . . . . . . . . . . . 1 . . . . . . Stealth | -11 -10 -10 -9 -6 -6 -6 -6 -5 -5 -5 -5 -5 -5 -4 -4 -4 -4 -3 -3 -2 -2 -2 --------- Run | Yrd Mat Sub Scr Fac Low Low Zio Pro Fac Ext Cet Arc Hub Fac Was Fac Arm Res Qua Res Tes Frg Distress Signals 34 | . 3 . . . . . . . 1 1 2 . 3 1 . . 3 9 . . 1 10 Communications Jammed 37 | . . . . . . . . . . . . . . . . . . . 7 30 . . Distress Signals 37 | . . . . . . . . . . . . . . . . . . . 7 30 . . Times Spotted 369 | . 20 9 . 21 4 . . 3 14 21 10 7 31 5 5 31 42 8 4 26 8 100 Peak Tracking Total 23 | . 8 2 . 7 4 . . 2 5 8 5 2 23 5 5 13 17 4 2 14 4 23 Tactical Retreats 59 | . 1 1 . 5 . . . . 7 1 . . 1 1 . 5 6 2 1 5 1 22 Traps | -11 -10 -10 -9 -6 -6 -6 -6 -5 -5 -5 -5 -5 -5 -4 -4 -4 -4 -3 -3 -2 -2 -2 ------- Run | Yrd Mat Sub Scr Fac Low Low Zio Pro Fac Ext Cet Arc Hub Fac Was Fac Arm Res Qua Res Tes Frg Traps Triggered 20 | . 1 4 . 3 . . . . . 3 . . . 2 . . . . . 3 . 4 Indirectly . | . . . . . . . . . . . . . . . . . . . . . . . Trap Hack Attempts . | . . . . . . . . . . . . . . . . . . . . . . . Triggered . | . . . . . . . . . . . . . . . . . . . . . . . Disarmed 7 | . . . . . . . . . . . . . . . . . . . 1 . . 6 Reprogrammed 1 | . . . . . . . . . . . . . . . . . . 1 . . . . Reused . | . . . . . . . . . . . . . . . . . . . . . . . Traps Extracted . | . . . . . . . . . . . . . . . . . . . . . . . Installed . | . . . . . . . . . . . . . . . . . . . . . . . Triggered . | . . . . . . . . . . . . . . . . . . . . . . . Machines | -11 -10 -10 -9 -6 -6 -6 -6 -5 -5 -5 -5 -5 -5 -4 -4 -4 -4 -3 -3 -2 -2 -2 ---------- Run | Yrd Mat Sub Scr Fac Low Low Zio Pro Fac Ext Cet Arc Hub Fac Was Fac Arm Res Qua Res Tes Frg Machines Disabled 23 | . . 1 . 1 . . . . 1 1 . 2 10 . . . 2 . 2 1 2 . Max in Single Turn 7 | . . 1 . 1 . . . . 1 1 . 1 7 . . . 1 . 1 1 1 . Garrison Access 6 | . . . . . . . . . . . . . . . . 1 . 1 . 3 . 1 Network Hub 2 | . . . . . . . . . . . . . 2 . . . . . . . . . Machines Repaired . | . . . . . . . . . . . . . . . . . . . . . . . Machines Dismantled . | . . . . . . . . . . . . . . . . . . . . . . . Machines Sabotaged 2 | . . . . . . . . . . . . . 1 . . . . . . . . 1 Overloaded Fab Kills . | . . . . . . . . . . . . . . . . . . . . . . . Hacking | -11 -10 -10 -9 -6 -6 -6 -6 -5 -5 -5 -5 -5 -5 -4 -4 -4 -4 -3 -3 -2 -2 -2 --------- Run | Yrd Mat Sub Scr Fac Low Low Zio Pro Fac Ext Cet Arc Hub Fac Was Fac Arm Res Qua Res Tes Frg Machines Accessed 131 | . 3 2 5 8 . . . . 14 11 . . 9 3 . 11 9 16 12 10 6 12 Terminals 77 | . 1 . . 2 . . . . 6 10 . . 9 2 . 6 6 10 9 4 5 7 Fabricators 11 | . . . . 1 . . . . 1 . . . . 1 . 2 2 2 . 1 . 1 Repair Stations 5 | . . . . 1 . . . . 1 . . . . . . 1 . . 1 . 1 . Recycling Units 20 | . 2 . . 4 . . . . 4 1 . . . . . . 1 3 . 2 . 3 Scanalyzers 2 | . . . . . . . . . . . . . . . . 1 . . 1 . . . Garrison Access 9 | . . . . . . . . . 2 . . . . . . 1 . 1 1 3 . 1 Total Hacks 568 | . 7 5 30 25 . . . . 37 24 . . 34 12 . 75 44 62 63 48 43 59 Successful 308 | . 5 5 30 14 . . . . 20 13 . . 20 9 . 31 21 30 27 25 21 37 Failed 260 | . 2 . . 11 . . . . 17 11 . . 14 3 . 44 23 32 36 23 22 22 Catastrophic 40 | . 1 . . 1 . . . . 4 . . . 1 1 . 11 5 4 4 2 3 3 Database Lockouts . | . . . . . . . . . . . . . . . . . . . . . . . Manual 265 | . 4 . . 11 . . 6 . 27 5 2 . 29 8 . 18 20 25 31 29 16 34 Terminals 388 | . 2 . . 5 . . . . 20 21 . . 34 10 . 49 34 44 55 31 39 44 Fabricators 29 | . . . . 3 . . . . 2 . . . . 2 . 5 6 6 . 1 . 4 Repair Stations 22 | . . . . 3 . . . . 2 . . . . . . 11 . . 2 . 4 . Recycling Units 59 | . 5 . . 14 . . . . 8 3 . . . . . . 4 10 . 6 . 9 Scanalyzers 9 | . . . . . . . . . . . . . . . . 6 . . 3 . . . Garrison Access 26 | . . . . . . . . . 5 . . . . . . 4 . 2 3 10 . 2 Terminal Hacks 172 | . . 5 30 . . . . . 6 10 . . 14 5 . 12 12 15 17 9 16 21 Record 28 | . . 4 24 . . . . . . . . . . . . . . . . . . . Part Schematic 5 | . . . . . . . . . . . . . 1 . . 3 . . 1 . . . Robot Schematic 1 | . . . . . . . . . . . . . . . . . . . . . . 1 Robot Analysis 6 | . . . 6 . . . . . . . . . . . . . . . . . . . Prototype ID Bank 10 | . . . . . . . . . 1 . . . 1 1 . . . 1 3 1 . 2 Open Door 10 | . . . . . . . . . . 8 . . . . . . . 1 . . 1 . Open DSF 1 | . . . . . . . . . 1 . . . . . . . . . . . . . Level Access Points 4 | . . . . . . . . . . . . . 1 . . . 1 1 1 . . . Branch Access Points 4 | . . . . . . . . . 1 . . . . . . . . . 1 1 1 . Emergency Access Points 4 | . . . . . . . . . . . . . 1 . . . 1 . . . 1 1 Machine Index 2 | . . . . . . . . . . . . . . . . . . . 1 . . 1 Terminal Index 8 | . . . . . . . . . . . . . 1 1 . 1 1 . . 1 1 2 Fabricator Index 1 | . . . . . . . . . . . . . . . . . . 1 . . . . Recycling Unit Index 6 | . . . . . . . . . . . . . 1 . . . 1 . 1 1 1 1 Garrison Index 2 | . . . . . . . . . . . . . . . . . . 1 . . . 1 Alert Level 18 | . . . . . . . . . 1 1 . . 3 1 . 2 3 3 1 . 1 2 Unreport Threat 5 | . . . . . . . . . . . . . 2 1 . . 1 . 1 . . . Locate Traps 7 | . . . . . . . . . . . . . . . . 2 . . 1 1 1 2 Disarm Traps 2 | . . . . . . . . . . . . . . . . . . . 1 . . 1 Reprogram Traps 1 | . . . . . . . . . . . . . . . . . . 1 . . . . Dispatch Records 9 | . . . . . . . . . 1 . . . . . . 1 . 2 1 1 1 2 Maintenance Status 1 | . . . . . . . . . . . . . . . . . . . . . . 1 Transport Status 1 | . . . . . . . . . . . . . . . . . . . . . . 1 Recall Investigation 4 | . . . . . . . . . 1 . . . . . . . 1 1 . . 1 . Recall Extermination 4 | . . . . . . . . . . . . . . . . 1 1 . 1 1 . . Recall Reinforcements 2 | . . . . . . . . . . . . . . . . . 1 . . . 1 . Recall Assault 2 | . . . . . . . . . . . . . . . . . . 1 . . 1 . Registered Components 8 | . . . . . . . . . . . . . 1 . . 1 1 1 1 1 1 1 Registered Prototypes 3 | . . . . . . . . . . . . . 1 . . . . . 1 1 . . Zone Layout 10 | . . . . . . . . . . 1 . . 1 1 . 1 . 1 1 . 2 2 Proto ID Catalog 1 | . . 1 . . . . . . . . . . . . . . . . . . . . Protovariant Controls 2 | . . . . . . . . . . . . . . . . . . . . . 2 . Fabricator Hacks 15 | . . . . 1 . . . . . . . . . 1 . 4 5 3 . 1 . . Network Status 4 | . . . . . . . . . . . . . . 1 . 1 1 1 . . . . Load Schematic 4 | . . . . . . . . . . . . . . . . 1 2 1 . . . . Build 7 | . . . . 1 . . . . . . . . . . . 2 2 1 . 1 . . Repair Station Hacks 13 | . . . . 2 . . . . . . . . . . . 7 . . 2 . 2 . Scan Component 7 | . . . . 1 . . . . . . . . . . . 4 . . 1 . 1 . Repair 6 | . . . . 1 . . . . . . . . . . . 3 . . 1 . 1 . Recycling Unit Hacks 23 | . 2 . . 5 . . . . 4 . . . . . . . 1 4 . 3 . 4 Report Inventory 18 | . 1 . . 4 . . . . 4 . . . . . . . 1 3 . 2 . 3 Retrieve Components 5 | . 1 . . 1 . . . . . . . . . . . . . 1 . 1 . 1 Scanalyzer 3 | . . . . . . . . . . . . . . . . 3 . . . . . . Insert Component 1 | . . . . . . . . . . . . . . . . 1 . . . . . . Analyze 2 | . . . . . . . . . . . . . . . . 2 . . . . . . Garrison Access Hacks 6 | . . . . . . . . . . . . . . . . 1 . 1 . 3 . 1 Unlock Access 1 | . . . . . . . . . . . . . . . . . . 1 . . . . Seal Access 5 | . . . . . . . . . . . . . . . . 1 . . . 3 . 1 Unauthorized Hacks 76 | . 3 . . 6 . . . . 10 3 . . 6 3 . 4 3 7 8 9 3 11 Terminals 47 | . 1 . . 2 . . . . 3 2 . . 6 2 . 3 2 4 6 5 3 8 Track 1 | . . . . . . . . . . . . . . . . . . . . . . 1 Assimilate 8 | . . . . 1 . . . . . . . . . . . . 1 1 1 3 . 1 Botnet 29 | . 1 . . 1 . . . . 3 2 . . 2 2 . 3 1 3 3 2 3 3 Operators 2 | . . . . . . . . . . . . . . . . . . . 1 . . 1 Skim 2 | . . . . . . . . . . . . . . . . . . . 1 . . 1 Sabotage 5 | . . . . . . . . . . . . . 4 . . . . . . . . 1 Fabricators 3 | . . . . 1 . . . . 1 . . . . 1 . . . . . . . . Report 3 | . . . . 1 . . . . 1 . . . . 1 . . . . . . . . Repair Stations . | . . . . . . . . . . . . . . . . . . . . . . . Recycling Units 17 | . 2 . . 3 . . . . 4 1 . . . . . . 1 2 . 1 . 3 Tunnel 2 | . 2 . . . . . . . . . . . . . . . . . . . . . Fedlink 14 | . . . . 3 . . . . 4 . . . . . . . 1 2 . 1 . 3 Scrapoids 1 | . . . . . . . . . . 1 . . . . . . . . . . . . Scanalyzers 2 | . . . . . . . . . . . . . . . . . . . 2 . . . Researchers 1 | . . . . . . . . . . . . . . . . . . . 1 . . . Extract 1 | . . . . . . . . . . . . . . . . . . . 1 . . . Garrison Access 7 | . . . . . . . . . 2 . . . . . . 1 . 1 . 3 . . Redirect 1 | . . . . . . . . . . . . . . . . . . . . 1 . . Reprogram 2 | . . . . . . . . . 1 . . . . . . . . 1 . . . . Watchers 4 | . . . . . . . . . 1 . . . . . . 1 . . . 2 . . Data Cores Recovered . | . . . . . . . . . . . . . . . . . . . . . . . Used . | . . . . . . . . . . . . . . . . . . . . . . . Hacking Detections 90 | . 3 . . 7 . . . . 9 4 . . 7 2 . 10 9 9 11 7 4 8 Full Trace Events 11 | . . . . 2 . . . . 2 . . . . . . 1 2 1 . . 1 2 Feedback Events 1 | . . . . . . . . . . . . . . . . . . . . . . 1 Corruption 1 | . . . . . . . . . . . . . . . . . . . . . . 1 Feedback Blocked . | . . . . . . . . . . . . . . . . . . . . . . . Robot Schematics Acquired 2 | . . . . . . . . . . . . . . . . . . . 1 . . 1 Robots Built 5 | . . . . 2 . . . . . . . . . . . . . . . 3 . . Authchips . | . . . . . . . . . . . . . . . . . . . . . . . Time 245 | . . . . 134 . . . . . . . . . . . . . . . 111 . . Total Robot Build Rating 35 | . . . . 8 . . . . . . . . . . . . . . . 27 . . Part Schematics Acquired 16 | . . . . . . . . . . . . . 1 . . 4 . . 8 . 3 . Parts Built 5 | . . . . . . . . . . . . . . . . 1 2 2 . . . . Authchips . | . . . . . . . . . . . . . . . . . . . . . . . Time 357 | . . . . . . . . . . . . . . . . 184 109 64 . . . . Total Part Build Rating 31 | . . . . . . . . . . . . . . . . 9 6 16 . . . . Parts Repaired 6 | . . . . 1 . . . . . . . . . . . 3 . . 1 . 1 . Time 197 | . . . . 16 . . . . . . . . . . . 121 . . 26 . 34 . Parts Recycled . | . . . . . . . . . . . . . . . . . . . . . . . Recycled Matter . | . . . . . . . . . . . . . . . . . . . . . . . Retrieved Matter . | . . . . . . . . . . . . . . . . . . . . . . . Retrieved Components 20 | . 9 . . 3 . . . . . . . . . . . . . 3 . 3 . 2 Parts Scanalyzed 1 | . . . . . . . . . . . . . . . . 1 . . . . . . Part Schematics Acquired 1 | . . . . . . . . . . . . . . . . 1 . . . . . . Parts Damaged . | . . . . . . . . . . . . . . . . . . . . . . . Bothacking | -11 -10 -10 -9 -6 -6 -6 -6 -5 -5 -5 -5 -5 -5 -4 -4 -4 -4 -3 -3 -2 -2 -2 ------------ Run | Yrd Mat Sub Scr Fac Low Low Zio Pro Fac Ext Cet Arc Hub Fac Was Fac Arm Res Qua Res Tes Frg Used RIF Installer . | . . . . . . . . . . . . . . . . . . . . . . . Robots Hacked . | . . . . . . . . . . . . . . . . . . . . . . . Non-combat . | . . . . . . . . . . . . . . . . . . . . . . . Combat . | . . . . . . . . . . . . . . . . . . . . . . . Robot Hacks Applied . | . . . . . . . . . . . . . . . . . . . . . . . Relay Couplers Released . | . . . . . . . . . . . . . . . . . . . . . . . Fabnet Peak Effective % . | . . . . . . . . . . . . . . . . . . . . . . . Robots Rewired 8 | . . . . . . . . . . 8 . . . . . . . . . . . . Allies Hacked . | . . . . . . . . . . . . . . . . . . . . . . . Hacks Repelled . | . . . . . . . . . . . . . . . . . . . . . . . Allies | -11 -10 -10 -9 -6 -6 -6 -6 -5 -5 -5 -5 -5 -5 -4 -4 -4 -4 -3 -3 -2 -2 -2 -------- Run | Yrd Mat Sub Scr Fac Low Low Zio Pro Fac Ext Cet Arc Hub Fac Was Fac Arm Res Qua Res Tes Frg Total Allies 52 | . . . . 3 . . 5 . 4 25 5 . . . . . 1 1 1 6 . 1 Largest Group 16 | . . . . 2 . . 5 5 4 16 15 8 7 . . . . 1 1 4 . 1 Highest-Rated Group 889 | . . . . 64 . . 126 126 116 669 889 496 475 . . . . 45 26 219 . 26 Highest-Rated Ally 143 | . . . . 32 . . 30 30 29 143 136 96 96 . . . . 45 26 58 . 26 Total Orders . | . . . . . . . . . . . . . . . . . . . . . . . Ally Attacks 340 | . . . . 18 . . . 21 10 127 80 22 52 . . . . . . 10 . . Total Damage 8556 | . . . . 726 . . . 374 192 3518 1667 365 1446 . . . . . . 268 . . Kills 50 | . . . . 3 . . . 3 3 14 10 4 12 . . . . . . 1 . . Allies Corrupted 1 | . . . . . . . . . . 1 . . . . . . . . . . . . Allies Melted 2 | . . . . . . . . . . . . . 1 . . . . . . . . 1 Intel | -11 -10 -10 -9 -6 -6 -6 -6 -5 -5 -5 -5 -5 -5 -4 -4 -4 -4 -3 -3 -2 -2 -2 ------- Run | Yrd Mat Sub Scr Fac Low Low Zio Pro Fac Ext Cet Arc Hub Fac Was Fac Arm Res Qua Res Tes Frg Active Infowar (turns) 14100 | 49 1249 2785 2150 606 134 167 573 274 625 571 330 96 123 120 30 800 165 657 280 881 267 1168 Optics 4310 | . . . . . . . . . . . . . . 62 30 800 165 657 280 881 267 1168 Sensors 5134 | . . . . 344 134 167 573 274 625 571 330 11 . . . . . 610 280 624 266 325 IFF 1155 | . . . . 139 . . . . . . . . . 65 30 769 144 8 . . . . Terrain 1247 | 49 1198 . . . . . . . . . . . . . . . . . . . . . Structural 10909 | . 51 2785 2150 501 134 167 573 274 625 571 101 96 123 120 30 692 98 572 275 821 150 . Cloaking 2091 | . . . . . . 3 . 1 362 . . . . 5 30 438 22 513 253 464 . . Jamming 1246 | . . . . . . . . . . . . . . . . . . 437 280 500 . 29 ECM 510 | . . . . 43 . . . . 25 . . . . . . 140 91 84 . 127 . . Robot Analysis Total 6 | . . . 6 . . . . . . . . . . . . . . . . . . . Derelict Logs Recovered 10 | . . 1 5 . . 1 2 1 . . . . . . . . . . . . . . Drone Launches . | . . . . . . . . . . . . . . . . . . . . . . . Drone Recoveries . | . . . . . . . . . . . . . . . . . . . . . . . Exploration | -11 -10 -10 -9 -6 -6 -6 -6 -5 -5 -5 -5 -5 -5 -4 -4 -4 -4 -3 -3 -2 -2 -2 ------------- Run | Yrd Mat Sub Scr Fac Low Low Zio Pro Fac Ext Cet Arc Hub Fac Was Fac Arm Res Qua Res Tes Frg Turns Passed 15510 | 119 1249 2856 3369 657 134 167 573 274 625 571 330 96 123 120 30 800 165 657 280 881 267 1167 Spaces Moved 20247 | 54 663 1693 2037 829 468 599 1249 381 1334 755 256 92 293 342 83 1325 453 1299 547 1337 616 3542 Core 397 | 4 . . 392 . . . . . . . . . . . . . . . . . . 1 Treads 3124 | 50 663 1233 1178 . . . . . . . . . . . . . . . . . . . Legs 2 | . . . . . . . . . . . . . . . . . . . . . . 2 Wheels 948 | . . 460 467 21 . . . . . . . . . . . . . . . . . . Hover . | . . . . . . . . . . . . . . . . . . . . . . . Flight 15776 | . . . . 808 468 599 1249 381 1334 755 256 92 293 342 83 1325 453 1299 547 1337 616 3539 Fastest Speed 5 | 50 160 115 50 26 25 25 25 25 7 12 21 22 22 29 29 26 24 25 21 11 23 5 Average Speed 54 | 151 160 157 159 31 25 25 25 25 23 19 21 22 22 30 32 30 28 28 25 26 26 21 Slowest Speed 700 | 160 160 240 350 120 26 25 25 25 25 24 22 22 22 34 34 34 32 106 92 93 32 700 Overloaded Moves 908 | . . . . . . . . . 12 17 . . 42 . 13 36 105 . . 27 . 656 Propulsion Burnouts 1 | . . . . . . . . . . . . . . . . . . . . . . 1 Robots Hopped 101 | . . . . 6 . . . . 6 5 . . 1 3 4 4 8 1 7 13 5 38 Potential Cave-ins 16 | . . . . . . . . . . . . . . . . . . . 3 3 . 10 Cave-ins Triggered . | . . . . . . . . . . . . . . . . . . . . . . . Exploration Rate (%) 56 | 5 88 89 87 27 60 74 86 65 38 77 61 72 45 14 88 35 34 47 59 38 55 65 Regions Visited 22 Branch Regions 14 Pre-discovered Areas 10 | . 2 1 5 1 . . 1 . . . . . . . . . . . . . . . Known Exits Taken 16 | . . . . 1 1 1 1 1 1 1 1 1 1 . . 1 1 1 1 1 1 . Unknown Exits Taken 4 | 1 1 1 1 . . . . . . . . . . . . . . . . . . . Scrap Searched 30 | . . 13 4 . 1 7 3 2 . . . . . . . . . . . . . . Spaces Dug 112 | . . 3 . 13 3 2 . 3 21 . . . 5 1 . 16 2 11 2 19 . 11 Terrain Destroyed 386 | . . 3 . 23 3 2 . 3 32 85 . 2 171 1 . 16 2 11 2 19 . 11 Melee 112 | . . 3 . 13 3 2 . 3 21 . . . 5 1 . 16 2 11 2 19 . 11 Projectile 3 | . . . . . . . . . . . . 2 1 . . . . . . . . . AOE 271 | . . . . 10 . . . . 11 85 . . 165 . . . . . . . . . Terrain Rammed . | . . . . . . . . . . . . . . . . . . . . . . . Walls Destroyed . | . . . . . . . . . . . . . . . . . . . . . . . Machines Disabled . | . . . . . . . . . . . . . . . . . . . . . . . Actions | -11 -10 -10 -9 -6 -6 -6 -6 -5 -5 -5 -5 -5 -5 -4 -4 -4 -4 -3 -3 -2 -2 -2 --------- Run | Yrd Mat Sub Scr Fac Low Low Zio Pro Fac Ext Cet Arc Hub Fac Was Fac Arm Res Qua Res Tes Frg Total 24068 | 78 739 1805 2179 1189 480 614 1508 550 1602 1147 504 150 334 353 82 1690 473 1547 667 1793 699 3885 Wait 2623 | 9 . 25 2 256 3 3 258 159 226 313 210 41 25 . . 327 9 168 101 404 54 30 Move 20052 | 53 662 1692 2036 818 467 598 1248 380 1321 744 255 91 291 336 76 1316 439 1296 532 1316 605 3480 Hop 74 | . . . . 4 . . . . 6 5 . . 1 3 2 4 5 1 7 7 5 24 Pick Up 168 | 4 2 16 62 8 1 4 . . 1 8 1 1 . 1 1 4 2 8 2 2 4 36 Fast Attach 131 | 6 1 1 11 10 1 1 1 1 8 1 1 . . 2 . 6 4 9 6 9 9 43 Attach 64 | 1 . 4 1 7 . . . . 2 4 2 1 1 1 . . 1 3 3 7 3 23 Detach 63 | . . . 9 3 1 . . . 2 . 1 . 1 . . . . 6 2 4 2 32 Swap 117 | . 4 9 . 8 1 1 . 1 3 6 6 . . 1 1 10 6 27 2 4 4 23 Drop 189 | . . 7 58 13 3 5 1 1 4 8 3 . . . 2 6 3 13 4 1 5 52 Fire 157 | 5 63 23 . 2 . . . . 2 21 23 7 6 . . . . . . . . 5 Melee 233 | . . 28 . 18 3 2 . 8 27 15 2 9 9 1 . 17 4 16 8 39 8 19 Ram . | . . . . . . . . . . . . . . . . . . . . . . . Kick . | . . . . . . . . . . . . . . . . . . . . . . . Crush 7 | . 7 . . . . . . . . . . . . . . . . . . . . . Escape Stasis 90 | . . . . 42 . . . . . 22 . . . 8 . . . . . . . 18 Rewire . | . . . . . . . . . . . . . . . . . . . . . . . Trap . | . . . . . . . . . . . . . . . . . . . . . . . Miscellaneous 100 | . . . . . . . . . . . . . . . . . . . . . . 100 Route ------- -11/Scrapyard -10/Materials (discovered 5 exits: [*Mat x3] / [*Min] / *Sub) -10/Subcaves (discovered 5 exits: [*Mat x2] / Rec / *Scr x2) -9/Scraptown (discovered 2 exits: *Fac x2) -6/Factory (discovered 6 exits: *Fac x4 / *Low x2) -6/Lower Caves -6/Lower Caves (discovered 2 exits: *Fac / *Zio) -6/Zion (discovered 2 exits: *Dee / *Pro) -5/Proximity Caves -5/Factory (discovered 5 exits: *Fac / *Upp x2 / *Ext x2) -5/Extension (discovered 3 exits: *Fac x2 / *Cet) -5/Cetus (discovered 2 exits: *Fac / *Arc) -5/Archives (discovered 2 exits: *Fac / *Hub) -5/Hub_04(d) (discovered 4 exits: *Fac x4) -4/Factory (discovered 2 exits: [*Upp] / Arm) -4/Waste -4/Factory -4/Armory (discovered 2 exits: *Res x2) -3/Research (discovered 6 exits: *Res x3 / *Qua x2 / Gar) -3/Quarantine -2/Research (discovered 4 exits: *Acc x2 / *Tes x2) -2/Testing (discovered 2 exits: *Sec / *Frg) -2/Protoforge 0bPrime History --------- Turn | Location | Event 12 | -11/Scrapyard | Discovered new exit (range 15) 120 | -11/Scrapyard | Entered Materials 121 | -10/Materials | Met a group of wandering Federalists 200 | -10/Materials | Discovered new exit (range 13) 311 | -10/Materials | Build established: Mutant 558 | -10/Materials | Discovered new exit (range 12) 660 | -10/Materials | Discovered new exit (range 16) 768 | -10/Materials | Discovered new exit (range 15) 964 | -10/Materials | Discovered new exit (range 8) 1369 | -10/Materials | Entered Subcaves 1370 | -10/Subcaves | Continued accompanying wandering Federalists (3) 1370 | -10/Subcaves | Approached by a straggling Scientist 1403 | -10/Subcaves | Visited Clippyterm 1408 | -10/Subcaves | Identified exit to Recycling 1484 | -10/Subcaves | Shifting Twisted Machinery released Sub. Monowheel 1520 | -10/Subcaves | Shifting Twisted Machinery released Sub. Monowheel 1678 | -10/Subcaves | Scientist uncovered a shortcut to Scraptown 2601 | -10/Subcaves | Discovered new exit (range 12) 2840 | -10/Subcaves | Disturbed a concealed Subdweller 3138 | -10/Subcaves | Ambushed by Subdwellers from Twisted Machinery 3149 | -10/Subcaves | Core integrity fell below 50% 3523 | -10/Subcaves | Discovered new exit (range 10) 3733 | -10/Subcaves | Visited 4L-MR0's lab 3750 | -10/Subcaves | Found Meta Core 3923 | -10/Subcaves | Disturbed a concealed Subdweller 3998 | -10/Subcaves | Lost 3 parts (1p1n1w) 4225 | -10/Subcaves | Entered Scraptown 4336 | -9/Scraptown | Heard Great Nut preacher, LISTEN AND RECITE! 4374 | -9/Scraptown | Visited UFD Registry 4374 | -9/Scraptown | Registered with UFD as "Phasemod" 4408 | -9/Scraptown | Visited Fellowship of the Rings 4437 | -9/Scraptown | Visited Assassins FH 4485 | -9/Scraptown | Visited Cyclists 4513 | -9/Scraptown | Entered Cyclist Reading Room 4588 | -9/Scraptown | Visited Awakened 4650 | -9/Scraptown | Scanned Subdweller tech in exchange for log data 4655 | -9/Scraptown | Learned location of Quarantine (-3) 4657 | -9/Scraptown | Learned Research terminal intel 4660 | -9/Scraptown | Learned Factory garrison access intel 4662 | -9/Scraptown | Learned 8 Research zone layouts 4665 | -9/Scraptown | Learned Research security intel 4698 | -9/Scraptown | Discovered new exit (range 11) 5087 | -9/Scraptown | Visited Red Mages 5143 | -9/Scraptown | Visited SPCMW 5189 | -9/Scraptown | Visited Junk Repository 5455 | -9/Scraptown | Delivered Scrap Shield to a Scientist 5965 | -9/Scraptown | Visited Curators Association 5991 | -9/Scraptown | Visited Botcube Research 5997 | -9/Scraptown | Found Botcube 6027 | -9/Scraptown | Visited DA-N13 Charitable Foundation 6041 | -9/Scraptown | Found DCF Scrap (30 items) 6133 | -9/Scraptown | Visited Chapter 10 6176 | -9/Scraptown | Visited Analyses Database 6227 | -9/Scraptown | Visited Abandonware Association 6243 | -9/Scraptown | Learned abandonware demo "HACKBUD.EXE" 6280 | -9/Scraptown | Visited Scrapoid Pod Storage 6288 | -9/Scraptown | Found Scrapoid Pod 6319 | -9/Scraptown | Visited Scrapoid Research Area 6608 | -9/Scraptown | Visited Cartography Club 6754 | -9/Scraptown | Learned location of Proximity Caves (-4) 6754 | -9/Scraptown | Learned location of Warlord (-4) 6754 | -9/Scraptown | Learned 12 Materials zone layouts 6754 | -9/Scraptown | Learned 8 Factory zone layouts 6754 | -9/Scraptown | Learned 16 Factory zone layouts 6754 | -9/Scraptown | Learned 24 Factory zone layouts 6754 | -9/Scraptown | Learned 20 Proximity Caves zone layouts 6754 | -9/Scraptown | Learned 4 Storage zone layouts 6754 | -9/Scraptown | Learned location of 1 exit from Factory 6754 | -9/Scraptown | Learned location of 2 exits from Research 6754 | -9/Scraptown | Learned location of 2 exits from Upper Caves 6768 | -9/Scraptown | Found Deep Structural Scanner 7137 | -9/Scraptown | Build established: Hauler-Mutant 7517 | -9/Scraptown | Met Optimus 7517 | -9/Scraptown | Accepted into 0bPrime 7588 | -9/Scraptown | Discovered new exit (range 5) 7594 | -9/Scraptown | Entered Factory 7594 | -6/Factory | Evolved 8 slots: Power x1, Propulsion x3, Utility x4 7595 | -6/Factory | Identified exit to Factory 7596 | -6/Factory | Identified exit to Lower Caves 7597 | -6/Factory | Loaded intel: 4 garrison access locations 7711 | -6/Factory | Spotted B-75 Beast 7764 | -6/Factory | Loaded intel: 8 recycling unit locations 7777 | -6/Factory | Learned location of Protoforge (-2) 7900 | -6/Factory | Attached Meta Core, gained temporary slots: Propulsion, Utility, Weapon 7969 | -6/Factory | Fabricated Y-54 Guardian (x2) 8101 | -6/Factory | Repaired Nuclear Pulse Thruster 8246 | -6/Factory | Discovered exit to Factory (range 8) 8251 | -6/Factory | Entered Lower Caves 8253 | -6/Lower Caves | UFD Scientist delivered a prototype 8260 | -6/Lower Caves | Found Prototype Protection 8280 | -6/Lower Caves | Build established: Infiltrator-Ninja 8342 | -6/Lower Caves | Spotted B-75 Beast 8378 | -6/Lower Caves | Discovered new exit (range 16) 8385 | -6/Lower Caves | Identified exit to Lower Caves 8385 | -6/Lower Caves | Entered another Lower Caves area 8390 | -6/Lower Caves | Discovered exit to Factory (range 18) 8442 | -6/Lower Caves | Learned Factory interactive machine intel 8458 | -6/Lower Caves | Encountered a Warlord checkpoint 8467 | -6/Lower Caves | Found DCF Scrap (11 items) 8467 | -6/Lower Caves | Discovered new exit (range 17) 8473 | -6/Lower Caves | Identified exit to Zion 8552 | -6/Lower Caves | Entered Zion 8570 | -6/Zion | Discovered new exit (range 10) 8573 | -6/Zion | Identified exit to Proximity Caves 8611 | -6/Zion | Identified exit to Deep Caves 8645 | -6/Zion | Learned Factory security intel 8655 | -6/Zion | Turned away by Imprinter 8686 | -6/Zion | Gained Derelict followers 8698 | -6/Zion | Acquired unknown access codes intercepted by a Zionite 8723 | -6/Zion | Learned 4 Factory zone layouts 8753 | -6/Zion | Build established: Ninja 8765 | -6/Zion | Opened final containment barrier to the Deep Caves 8769 | -6/Zion | Saw the warning signs outside the Deep Caves entrance 9125 | -6/Zion | Entered Proximity Caves 9125 | -5/Proximity Caves | Accompanied by 5 allies 9303 | -5/Proximity Caves | Attracted the attention of an 0b10 checkpoint 9354 | -5/Proximity Caves | Learned Factory stockpile data 9376 | -5/Proximity Caves | Lost 3 allies 9399 | -5/Proximity Caves | Entered Factory 9399 | -5/Factory | Evolved 2 slots: Propulsion x1, Utility x1 9400 | -5/Factory | Identified exit to Upper Caves 9404 | -5/Factory | Loaded intel: 55 interactive machine locations 9474 | -5/Factory | Loaded intel: 8 recycling unit locations 9586 | -5/Factory | Discovered new exit (range 13) 9591 | -5/Factory | Identified exit to Factory 9613 | -5/Factory | Identified exit to Extension 9803 | -5/Factory | Build established: Hacker-Ninja 10024 | -5/Factory | Entered Extension 10024 | -5/Extension | Accompanied by 4 allies 10028 | -5/Extension | Identified Enh. Scrap Shield 10043 | -5/Extension | Rescued a captive Derelict 10045 | -5/Extension | Rescued a captive Derelict 10052 | -5/Extension | Scrapoid reinforcements arrived 10134 | -5/Extension | Rescued a captive Derelict 10135 | -5/Extension | Rescued a captive Derelict 10153 | -5/Extension | Lost 5 allies 10157 | -5/Extension | Rescued A7 10177 | -5/Extension | Rescued a captive Derelict 10177 | -5/Extension | Rescued a captive Derelict 10205 | -5/Extension | Spotted B-75 Beast 10206 | -5/Extension | Discovered exit to Factory (range 17) 10206 | -5/Extension | Spotted B-75 Beast 10235 | -5/Extension | Rescued a captive Derelict 10237 | -5/Extension | Rescued a captive Derelict 10247 | -5/Extension | Rescued a captive Derelict 10252 | -5/Extension | Rescued a captive Derelict 10253 | -5/Extension | Rescued a captive Derelict 10282 | -5/Extension | Lost 7 allies 10511 | -5/Extension | Build established: Hacker-Scout 10537 | -5/Extension | Discovered exit to Factory (range 10) 10537 | -5/Extension | Discovered new exit (range 6) 10560 | -5/Extension | Identified exit to Cetus 10595 | -5/Extension | Entered Cetus 10595 | -5/Cetus | Accompanied by 10 allies (A7) 10600 | -5/Cetus | Acquired a Cetus Manufacturing Module code from A7 10602 | -5/Cetus | Spotted Cetus Guard 10602 | -5/Cetus | Spotted Cetus Guard 10607 | -5/Cetus | Spotted Cetus Guard 10609 | -5/Cetus | Spotted Cetus Guard 10610 | -5/Cetus | Allies destroyed Cetus Guard 10625 | -5/Cetus | Allies destroyed Cetus Guard 10628 | -5/Cetus | Allies destroyed Cetus Guard 10651 | -5/Cetus | Started Cetus Manufacturing Module 10676 | -5/Cetus | Manufactured an Enhanced Grunt 10701 | -5/Cetus | Manufactured an Enhanced Grunt 10726 | -5/Cetus | Manufactured an Enhanced Grunt 10751 | -5/Cetus | Manufactured an Enhanced Grunt 10776 | -5/Cetus | Manufactured an Enhanced Grunt 10788 | -5/Cetus | Discovered new exit (range 15) 10792 | -5/Cetus | Identified exit to Archives 10816 | -5/Cetus | Spotted Cetus Guard 10816 | -5/Cetus | Spotted Cetus Guard 10819 | -5/Cetus | Spotted Cetus Guard 10821 | -5/Cetus | Spotted Cetus Guard 10841 | -5/Cetus | Allies destroyed Cetus Guard 10843 | -5/Cetus | Allies destroyed Cetus Guard 10853 | -5/Cetus | Allies destroyed Cetus Guard 10853 | -5/Cetus | Allies destroyed Cetus Guard 10854 | -5/Cetus | Discovered exit to Factory (range 18) 10863 | -5/Cetus | Met Revision 17 10880 | -5/Cetus | Lost 6 allies 10925 | -5/Cetus | Entered Archives 10925 | -5/Archives | Accompanied by 9 allies (A7) 10958 | -5/Archives | Discovered exit to Factory (range 16) 10960 | -5/Archives | Discovered new exit (range 18) 10985 | -5/Archives | Identified exit to Hub_04(d) 11021 | -5/Archives | Entered Hub_04(d) 11021 | -5/Hub_04(d) | Accompanied by 7 allies 11132 | -5/Hub_04(d) | Network Hub disabled 11142 | -5/Hub_04(d) | Network Hub disabled 11144 | -5/Hub_04(d) | Entered Factory 11144 | -4/Factory | Evolved 2 slots: Utility x2 11144 | -4/Factory | Discovered new exit (range 16) 11145 | -4/Factory | Identified exit to Armory 11175 | -4/Factory | Lost 4 parts (2n1u1w) 11264 | -4/Factory | Sucked down chute 11264 | -4/Factory | Entered Waste 11272 | -4/Waste | Spotted C-40 Crusher 11279 | -4/Waste | EMP discharged 11283 | -4/Waste | Spotted C-40 Crusher 11286 | -4/Waste | Spotted C-40 Crusher 11286 | -4/Waste | Spotted C-40 Crusher 11289 | -4/Waste | Discovered new exit (range 18) 11289 | -4/Waste | Spotted C-40 Crusher 11290 | -4/Waste | Spotted C-40 Crusher 11294 | -4/Waste | Identified exit to Factory 11294 | -4/Waste | Entered Factory 11629 | -4/Factory | Fabricated Imp. Q-thruster (x1) 11785 | -4/Factory | Discovered exit to Armory (range 18) 11816 | -4/Factory | Build established: Hacker-Sprinter 11872 | -4/Factory | Repaired Adv. Cloaking Device 11908 | -4/Factory | Repaired Mic. Antimatter Reactor 11960 | -4/Factory | Repaired Broken Cld. Cesium-ion Thruster 11982 | -4/Factory | Noticed UFD Elites at a Recycling Unit 12017 | -4/Factory | Lost 3 allies 12076 | -4/Factory | Cargo convoy interrupted 12094 | -4/Factory | Entered Armory 12114 | -4/Armory | Identified exit to Research 12149 | -4/Armory | Fabricated Imp. Sensor Array? 12157 | -4/Armory | System corruption reached 10% 12204 | -4/Armory | Loaded intel: 2 recycling unit locations 12259 | -4/Armory | Entered Research 12259 | -3/Research | Evolved 2 slots: Power x1, Utility x1 12260 | -3/Research | Identified exit to Quarantine 12261 | -3/Research | Identified exit to Research 12263 | -3/Research | Loaded intel: 24 terminal locations 12272 | -3/Research | Spotted B-86 Titan 12297 | -3/Research | Loaded intel: 4 recycling unit locations 12459 | -3/Research | Revision forces began assault on 0b10 12520 | -3/Research | Spotted B-86 Titan 12533 | -3/Research | Identified exit to Garrison 12562 | -3/Research | Found Prototype Device 12562 | -3/Research | Identified Exp. EM Disruption Field 12601 | -3/Research | Found Prototype Hackware 12601 | -3/Research | Identified Exp. Hacking Suite 12680 | -3/Research | Fabricated Q-thruster? 12734 | -3/Research | Found Prototype Device 12734 | -3/Research | Identified Exp. Thermal Defense Suite 12883 | -3/Research | Lost 5 allies 12916 | -3/Research | Entered Quarantine 12961 | -3/Quarantine | Repaired Cld. Cesium-ion Thruster 12988 | -3/Quarantine | Found Alien Artifact 12988 | -3/Quarantine | Identified Terrabomb 12988 | -3/Quarantine | Used Terrabomb 12995 | -3/Quarantine | Found Terrabomb 13009 | -3/Quarantine | Discovered exit to Research (range 9) 13110 | -3/Quarantine | Found Alien Artifact 13110 | -3/Quarantine | Identified Phase Armor 13152 | -3/Quarantine | Build established: Hacker-Ninja 13196 | -3/Quarantine | Entered Research 13196 | -2/Research | Evolved 2 slots: Propulsion x1, Utility x1 13197 | -2/Research | Identified exit to Access 13197 | -2/Research | Identified exit to Testing 13419 | -2/Research | Fabricated G-73 Enforcer (x3) 13750 | -2/Research | Spotted B-90 Cyclops 13906 | -2/Research | Lost 10 parts (1p4n5u) 14003 | -2/Research | Discovered exit to Access (range 11) 14008 | -2/Research | Loaded intel: 5 recycling unit locations 14077 | -2/Research | Entered Testing 14083 | -2/Testing | Lost 3 parts (1p1u1w) 14122 | -2/Testing | Found Prototype Energy Cannon 14122 | -2/Testing | Identified Disintegrator 14173 | -2/Testing | Protovariant out of control (PP-7MPUXRWNEF) 14173 | -2/Testing | Unleashed a protovariant (PP-7MPUXRWNEF) 14227 | -2/Testing | Repaired Q-thruster 14265 | -2/Testing | Spotted PP-7MPUXRWNEF 14289 | -2/Testing | Found Prototype Protection 14289 | -2/Testing | Identified Lgt. Regenerative Plating 14292 | -2/Testing | Found Prototype Protection 14292 | -2/Testing | Identified Med. Regenerative Plating 14307 | -2/Testing | Found Prototype Protection 14307 | -2/Testing | Identified SHELL Armor 14326 | -2/Testing | Spotted Fortress 14341 | -2/Testing | Discovered new exit (range 6) 14341 | -2/Testing | Discovered new exit (range 6) 14342 | -2/Testing | Identified exit to Section 7 14343 | -2/Testing | Identified exit to Protoforge 14344 | -2/Testing | Build established: Hacker-Scout 14344 | -2/Testing | Entered Protoforge 14345 | -2/Protoforge | Superfortress began startup sequence 14432 | -2/Protoforge | Spotted Hotshot 14453 | -2/Protoforge | Spotted Hotshot 14459 | -2/Protoforge | Used Terrabomb 14459 | -2/Protoforge | Spotted EXE-6 14459 | -2/Protoforge | Spotted EXE-6 14463 | -2/Protoforge | Spotted SKR-2 14464 | -2/Protoforge | Spotted SKR-2 14464 | -2/Protoforge | Spotted SKR-2 14477 | -2/Protoforge | UFD initiated attack on Protoforge 14477 | -2/Protoforge | Loaded intel: 3 recycling unit locations 14488 | -2/Protoforge | Spotted EXE-6 14489 | -2/Protoforge | Spotted EXE-6 14508 | -2/Protoforge | Found Prototype Processor 14508 | -2/Protoforge | Identified Exp. Armor Integrity Analyzer 14512 | -2/Protoforge | Found Prototype Device 14512 | -2/Protoforge | Identified Exp. Kinecellerator 14514 | -2/Protoforge | Optimus greeted in Protoforge 14546 | -2/Protoforge | Found 0bPrime Scrap Suit 14574 | -2/Protoforge | Found UFD Drillbomb 14616 | -2/Protoforge | Installed UFD Drillbomb at designated target 14616 | -2/Protoforge | UFD reported confirmed Drillbomb installation 14702 | -2/Protoforge | Spotted Decapitator 14702 | -2/Protoforge | Spotted Decapitator 14737 | -2/Protoforge | Found UFD Drillbomb 14744 | -2/Protoforge | Lost 3 parts (3n) 14779 | -2/Protoforge | Installed UFD Drillbomb at designated target 14779 | -2/Protoforge | UFD reported confirmed Drillbomb installation 14796 | -2/Protoforge | Lost 4 allies 14809 | -2/Protoforge | Found UFD Drillbomb 14867 | -2/Protoforge | Installed UFD Drillbomb at designated target 14867 | -2/Protoforge | UFD reported confirmed Drillbomb installation 14916 | -2/Protoforge | Found UFD Drillbomb 14929 | -2/Protoforge | Spotted Executioner 14936 | -2/Protoforge | Spotted Overlord 14938 | -2/Protoforge | Spotted Decapitator 14939 | -2/Protoforge | Spotted Decapitator 14940 | -2/Protoforge | Spotted Decapitator 14944 | -2/Protoforge | Spotted Decapitator 14945 | -2/Protoforge | Spotted Striker 14967 | -2/Protoforge | Spotted Executioner 14973 | -2/Protoforge | Spotted Executioner 14973 | -2/Protoforge | Spotted Executioner 14999 | -2/Protoforge | Installed UFD Drillbomb at designated target 14999 | -2/Protoforge | UFD reported confirmed Drillbomb installation 15004 | -2/Protoforge | Found UFD Drillbomb 15005 | -2/Protoforge | Lost 4 parts (1p3u) 15009 | -2/Protoforge | Spotted B-90 Cyclops 15011 | -2/Protoforge | Build established: Scavenger-Sprinter 15018 | -2/Protoforge | Lost 14 allies 15028 | -2/Protoforge | Spotted Executioner 15028 | -2/Protoforge | Spotted Executioner 15030 | -2/Protoforge | Spotted Hotshot 15030 | -2/Protoforge | Spotted Hotshot 15044 | -2/Protoforge | Installed UFD Drillbomb at designated target 15044 | -2/Protoforge | UFD reported confirmed Drillbomb installation 15048 | -2/Protoforge | Found UFD Drillbomb 15062 | -2/Protoforge | Installed UFD Drillbomb at designated target 15062 | -2/Protoforge | UFD reported confirmed Drillbomb installation 15073 | -2/Protoforge | Found UFD Drillbomb 15086 | -2/Protoforge | Spotted Executioner 15121 | -2/Protoforge | Spotted Hotshot 15121 | -2/Protoforge | Spotted Hotshot 15131 | -2/Protoforge | Installed UFD Drillbomb at designated target 15131 | -2/Protoforge | UFD reported confirmed Drillbomb installation 15135 | -2/Protoforge | Spotted Hotshot 15135 | -2/Protoforge | Spotted Hotshot 15159 | -2/Protoforge | Found UFD Drillbomb 15167 | -2/Protoforge | Spotted Executioner 15180 | -2/Protoforge | Spotted Striker 15183 | -2/Protoforge | Discovered exit to Access (range 22) 15197 | -2/Protoforge | Installed UFD Drillbomb at designated target 15197 | -2/Protoforge | UFD reported confirmed Drillbomb installation 15225 | -2/Protoforge | Found Exp. Transmission Jammer 15229 | -2/Protoforge | Found Prototype Device 15229 | -2/Protoforge | Identified Exp. EM Shield 15249 | -2/Protoforge | Lost 7 parts (1p4n1u1w) 15294 | -2/Protoforge | Found 0bPrime Scrap Suit 15305 | -2/Protoforge | Found UFD Drillbomb 15314 | -2/Protoforge | Spotted Executioner 15324 | -2/Protoforge | Found UFD Drillbomb 15331 | -2/Protoforge | Spotted Striker 15333 | -2/Protoforge | Spotted Executioner 15364 | -2/Protoforge | Lost 4 allies 15386 | -2/Protoforge | Installed UFD Drillbomb at designated target 15386 | -2/Protoforge | UFD reported confirmed Drillbomb installation 15393 | -2/Protoforge | Found UFD Drillbomb 15411 | -2/Protoforge | Installed UFD Drillbomb at designated target 15411 | -2/Protoforge | UFD reported confirmed Drillbomb installation 15412 | -2/Protoforge | UFD began Drillbomb countdown 15444 | -2/Protoforge | Lost 7 allies 15470 | -2/Protoforge | Found Prototype Processor 15470 | -2/Protoforge | Identified Exp. Targeting Computer 15474 | -2/Protoforge | Found Exp. Core Analyzer 15477 | -2/Protoforge | Found Exp. Core Analyzer 15486 | -2/Protoforge | Found Exp. Core Analyzer 15498 | -2/Protoforge | Found Exp. Core Analyzer 15502 | -2/Protoforge | Found Exp. Core Analyzer 15512 | *** | Defending 0bPrime! Last Messages --------------- 15503_ 0bP_NET: In T-9 this fine piece of machinery is all ours for the steep price of... many UFD lives. 15504_ 0bP_NET: But with it we will not only rebuild, we will wrest full control over 0b1 for ourselves! 15505_ 0bP_NET: What better way to punctuate our success than a blaze of glory, directed away from ourselves, of course. 15505_ Discarded Adv. Signal Interpreter. 15505_ Acquired Imp. Armor Integrity Analyzer. [Achievement: Ultimate Loadout] 15506_ 0bP_NET: Time for our final countdown to an explosive victory... 15507_ 0bP_NET: 5! 15508_ 0bP_NET: 4! 15508_ N-04 Retriever inserts Mak. Medium Armor Plating into Forge Plexus. 15509_ 0bP_NET: 3! 15509_ N-04 Retriever inserts Railgun into Forge Plexus. 15510_ 0bP_NET: If you're in the wrong place at the wrong time, the wrong time being in just a moment, I'm sorry but prepare to die. 15510_ N-04 Retriever inserts Hvy. Machine Gun into Forge Plexus. 15511_ 0bP_NET: Otherwise, enjoy the show! [Achievement: 30k Club] Map ----- +----------------------------------------------------+ | ##### ! ##### ##### #?????????????????????? | | "#???#""""#???#""""#???# #?????????????????????? | | "#???######???######???# #?????????????????????? | | "#?????????????????????# #?????????????????????? | | ##?????????????????????# #?????????????????????? | | ???????????????????????# #?????????????????????? | | ???????????????????????# #?????????????????????? | | ???????????????????????# #?????????????????????? | | ######################## ###########???????????? | | #???????????? | | """ " #?#######???? | | """ " """"" #?#"""""#???? | | "" "" """" #?#"""""#???? | | " """ "" " ###"" F"###?? | | "" """ " " " #"" ""#?? | | " " """" " "" "" "" #" "### | | " "% " "" "# """ | | " " " ""% # """ | | " "" " "" * "" + """ | | """ "" """|=%! " " + F" | | """ " "" !! """ # """ | | "" " """ "" " """ "# "" | | """ " " "" "" "# ### | | " """ " %%![ # ### | | " " " """ "" =! !! "# """ | | " " " @ %!%" # """ | | """"""""" " %" " " + "F" | | """""""""""""" " " " " + " | | """"""""""""""" " " " # "" | | """""""""""""""" /!" "" "# "" | | """"""""""""""""" %"!%= "#" "### | | """""""""""""""""" " ! "#"" ""#?? | | """"""""""""""""""" " "###"F ""###?? | | """""""""""""""""""" % s %" " "#?#"""""#???? | | """""""""""""""""""" "% !""" E " "#?#"""""#???? | | """""""""""""""""""" %3 [%j%"" " "#?#######???? | | """"""""""""""""""""" %E% %% % & " "#???????????? | | """""""""""""""""""""%" % %="" "" " "#???????????? | | """""""""""""""""""""%%%% % % " " "#???????????? | | """"""""""""""""""""" %E % % #???????????? | | """"""""""""""""""""" % % * #???????????? | | """""""""""""""""""""%% ! %*[ ##??????????? | | """"""""""""""""""""" %%%[%!%% " #??????????? | | """"""""""""""""""""" "%% ""%*! "" #??????????? | | """""""""""""""""""""[% % * %" ##??????????? | | """""""""""""""""""" %%"% % !!=! "#???????????? | | """""""""""""""""""" "" % !%= #???????????? | | """""""""""""""""""" %sSS%""" #???????????? | | """"""""""""""""""" % " % #???????????? | | """""""""""""""""" "%% % "" #???????????? | +----------------------------------------------------+ Best States ------------- Heat Dissipation 159 Energy Generation 55 Energy Capacity 430 Matter Stores 300 Matter Capacity 300 Sight Range 23 Robot Scan Range 18 Terrain Scan Range 16 Terrain Scan Density 10 ECM Strength 2 Jamming Range 22 Cloak Strength 4 Power Amplification 40 Additional Mass Support 16 Corruption Containment 12 Armor Coverage 800 Resistance: EM 75 Propulsion Shielding 33 Evasion (%) 81 Targeting Accuracy 12 Core Analysis 12 Armor Integrity Analysis 50 Recoil Reduction 2 Salvage Targeting 5 Offensive Hacking 38 Defensive Hacking 12 Item Schematics ----------------- Imp. Plasma Cutter | -5/Hub_04(d) | Hacked Centrium Medium Armor Plating | -4/Factory | Scanalyzed Adv. Cryofiber Web | -4/Factory | Hacked Q-thruster | -4/Factory | Hacked Imp. Sensor Array | -4/Factory | Hacked Med. Storage Unit | -3/Quarantine | Hacked Adv. Myomer Leg | -3/Quarantine | Archive Imp. KE Penetrator | -3/Quarantine | Archive Helical Railgun | -3/Quarantine | Archive Particle Charger | -3/Quarantine | Extracted Hvy. Gauss Cannon | -3/Quarantine | Extracted Imp. System Restoration Module | -3/Quarantine | Extracted Com. Mass Driver | -3/Quarantine | Extracted Electron Diverter | -2/Testing | Archive Exp. Core Analyzer | -2/Testing | Archive Exp. Utility Shielding | -2/Testing | Archive Robot Schematics ------------------ T-07 Excavator | -3/Quarantine | Archive B-74 Champion | -2/Protoforge | Hacked Fabricated ------------ Y-54 Guardian | x2 | -6/Factory | Preloaded Imp. Q-thruster | x1 | -4/Factory | Preloaded Imp. Sensor Array | x2 | -4/Armory Q-thruster | x2 | -3/Research G-73 Enforcer | x3 | -2/Research | Preloaded Repaired ---------- Nuclear Pulse Thruster | 6% | -6/Factory Adv. Cloaking Device | 16% | -4/Factory Mic. Antimatter Reactor | 4% | -4/Factory Cld. Cesium-ion Thruster | 64% | -4/Factory | Broken Cld. Cesium-ion Thruster | 57% | -3/Quarantine Q-thruster | 10% | -2/Testing Alien Tech Used ----------------- Terrabomb Phase Armor Achievements -------------- 30k Club Ultimate Loadout Challenges ------------ None Game ------ Seed ArmoredMultireflexTether Manual? 0 Play Time 06:28:57 Cumulative 138.2 hours Start 2025.06.27 @ 17:43:06 End 2025.06.28 @ 02:34:27 Sessions 1 Manual Loads 0 Difficulty Rogue Special Mode None Game No. 143 Rogue 143 Adventurer 0 Explorer 0 Win Type 9 Total 3 Types 1/0/0/1/0/0/0/0/0/1 Lore% 63 Gallery% 58 Achievement% 52 Wizard Run 0 Options --------- Layout 1 ASCII 0 Keyboard 1 Movement Numpad Keybinds 0 Fullscreen 1 Font 32/SmallcapsGlow Map View 77x35 Zoom Use 0% Tactical HUD 1 Map Filters NONE Filters NONE Steam 1 RUN: 0b37b3c6-eeda-491d-b4fe-84c0c367d5bb